bitfinex/quotes_SOLUSD_20220228
["timestamp","ask_amount","ask_price","bid_price","bid_amount"]
[1646048289522,1.72588266,90.332,90.241,26.1878064]
[1646048292426,1.72588266,90.332,90.242,13.17678921]
[1646048292626,1.72588266,90.332,90.25,16.03]
[1646048292826,23.3523,90.336,90.251,10.43]
[1646048293028,23.3523,90.336,90.251,24.26986382]
[1646048293229,23.3523,90.336,90.252,51.31267949]
[1646048293427,23.3523,90.336,90.254,66.43]
[1646048293631,23.3523,90.336,90.256,177.13]
[1646048293829,23.3523,90.336,90.27,16.03]
[1646048294229,23.3523,90.336,90.271,8.74678921]
[1646048294630,23.3523,90.336,90.272,28.93459561]
[1646048294830,23.3523,90.336,90.273,6.0]
[1646048295030,23.3523,90.336,90.27,16.03]
[1646048295833,110.7,90.335,90.27,16.03]
[1646048296033,1.57331168,90.334,90.257,23.5508]
[1646048296433,1.57331168,90.334,90.24,32.7669]
[1646048296634,1.57331168,90.334,90.241,32.20379729]
[1646048297234,1.57331168,90.334,90.242,26.20379729]
[1646048297834,1.57331168,90.334,90.243,4.43]
[1646048298437,1.57331168,90.334,90.244,26.20379729]
[1646048298634,4.43,90.333,90.244,26.20379729]
[1646048299236,4.43,90.333,90.242,26.20379729]
[1646048301240,1.57331168,90.334,90.243,29.55487309]
[1646048301442,1.57331168,90.334,90.244,6.0]
[1646048301642,1.57331168,90.334,90.244,57.32867038]
[1646048301842,1.57331168,90.334,90.245,29.55487309]
[1646048302043,1.57331168,90.334,90.246,6.0]
[1646048302242,1.57331168,90.334,90.247,4.43]
[1646048302444,1.57331168,90.334,90.248,24.8384]
[1646048302643,1.57331168,90.334,90.249,4.43]
[1646048302843,1.57331168,90.334,90.25,6.0]
[1646048303045,1.57331168,90.334,90.251,4.43]
[1646048303244,1.57331168,90.334,90.252,6.0]
[1646048303445,1.57331168,90.334,90.253,4.43]
[1646048303646,1.57331168,90.334,90.253,30.63379729]
[1646048303843,1.57331168,90.334,90.253,33.3805865]
[1646048304044,1.57331168,90.334,90.254,28.9505865]
[1646048304446,1.57331168,90.334,90.255,26.20379729]
[1646048304644,1.57331168,90.334,90.255,28.9505865]
[1646048305045,1.57331168,90.334,90.256,2.74678921]
[1646048305247,1.57331168,90.334,90.256,23.9505865]
[1646048305647,1.57331168,90.334,90.249,4.429]
[1646048306047,1.57331168,90.334,90.248,24.8384]
[1646048306250,1.57331168,90.334,90.25,41.15487309]
[1646048306448,1.57331168,90.334,90.251,10.43]
[1646048306651,1.57331168,90.334,90.251,35.55487309]
[1646048306849,1.57331168,90.334,90.252,25.12487309]
[1646048307048,1.57331168,90.334,90.253,10.43]
[1646048308350,1.57331168,90.334,90.253,16.02]
[1646048308550,1.57331168,90.334,90.254,2.74678921]
[1646048308751,23.3523,90.336,90.255,10.429]
[1646048308950,23.3523,90.336,90.255,35.19249741]
[1646048309249,23.3523,90.336,90.256,52.63515971]
[1646048309453,23.3523,90.336,90.26,16.03]
[1646048309652,23.3523,90.336,90.261,10.429]
[1646048309848,23.3523,90.336,90.261,13.17578921]
[1646048310249,23.3523,90.336,90.262,2.74678921]
[1646048310451,23.3523,90.336,90.263,10.429]
[1646048310850,23.3523,90.336,90.264,2.74678921]
[1646048311049,23.3523,90.336,90.265,6.0]
[1646048311453,57.0109466,90.335,90.265,8.74678921]
[1646048312050,57.0109466,90.335,90.265,2.74678921]
[1646048312451,110.7,90.334,90.266,6.0]
[1646048312652,110.7,90.334,90.265,19.38118921]
[1646048312852,110.7,90.334,90.265,16.6344]
[1646048313052,57.0109466,90.335,90.265,16.6344]
[1646048313252,110.7,90.334,90.265,16.6344]
[1646048313453,1.63295351,90.333,90.248,74.7267705]
[1646048313653,1.63295351,90.333,90.25,16.03]
[1646048314455,57.0109466,90.335,90.26,6.0]
[1646048314654,57.0109466,90.335,90.26,24.77678921]
[1646048314855,23.3523,90.336,90.261,52.63515971]
[1646048315056,23.3523,90.336,90.262,6.0]
[1646048315382,1.71391996,90.378,90.264,2.47247285]
[1646048315556,110.7,90.376,90.266,177.13]
[1646048315757,110.7,90.376,90.28,126.73]
[1646048316055,48.0739,90.377,90.28,126.73]
[1646048316056,110.7,90.374,90.281,6.0]
[1646048316258,51.39131304,90.375,90.282,177.13]
[1646048316459,51.39131304,90.375,90.287,110.7]
[1646048316659,51.39131304,90.375,90.289,110.7]
[1646048316858,48.0739,90.377,90.3,126.73]
[1646048317258,48.0739,90.377,90.3,16.03]
[1646048317458,1.54365883,90.408,90.315,110.7]
[1646048317658,4.426,90.414,90.315,110.7]
[1646048317659,23.5263,90.407,90.32,126.73]
[1646048317858,1.51191805,90.436,90.326,177.13]
[1646048318060,4.425,90.479,90.341,177.13]
[1646048318359,4.425,90.479,90.361,177.13]
[1646048318560,110.7,90.484,90.377,110.7]
[1646048318759,1.78152657,90.483,90.39,16.03]
[1646048318959,110.7,90.481,90.391,10.422]
[1646048319161,109.6781739,90.481,90.391,10.422]
[1646048319360,54.77144723,90.482,90.392,97.94446408]
[1646048319562,54.77144723,90.482,90.395,2.73436028]
[1646048319962,54.77144723,90.482,90.396,6.0]
[1646048320159,54.77144723,90.482,90.4,16.03]
[1646048320361,54.77144723,90.482,90.401,12.97755999]
[1646048320761,54.77144723,90.482,90.402,5.27513359]
[1646048320961,54.77144723,90.482,90.403,10.422]
[1646048321160,54.77144723,90.482,90.403,16.06361697]
[1646048321361,54.77144723,90.482,90.404,5.23340499]
[1646048321665,54.77144723,90.482,90.405,6.0]
[1646048321861,54.77144723,90.482,90.41,16.03]
[1646048322061,54.77144723,90.482,90.411,9.02406605]
[1646048322260,110.7,90.481,90.411,9.02406605]
[1646048323062,110.7,90.481,90.41,16.03]
[1646048323263,110.7,90.481,90.411,3.04857064]
[1646048323461,54.77144723,90.482,90.411,3.04857064]
[1646048323863,4.422,90.515,90.416,66.45]
[1646048324065,50.7995,90.531,90.421,66.45]
[1646048324265,46.3775,90.531,90.422,2.99912491]
[1646048324463,46.3775,90.531,90.424,66.45]
[1646048324663,46.3775,90.531,90.426,66.45]
[1646048324862,84.2756,90.547,90.44,16.03]
[1646048324863,59.71268057,90.535,90.44,16.03]
[1646048325063,59.71268057,90.535,90.441,2.65677544]
[1646048325265,59.71268057,90.535,90.442,6.0]
[1646048325463,59.71268057,90.535,90.442,38.77139621]
[1646048325663,59.71268057,90.535,90.443,50.50259337]
[1646048325863,59.71268057,90.535,90.444,8.98536929]
[1646048326064,59.71268057,90.535,90.444,90.74384666]
[1646048326263,407.46889058,90.5,90.451,66.45]
[1646048326463,407.46889058,90.5,90.48,200.43]
[1646048326664,407.46889058,90.5,90.49,16.03]
[1646048326867,407.46889058,90.5,90.491,8.50013271]
[1646048327065,407.46889058,90.5,90.491,2.50013271]
[1646048327666,407.46889058,90.5,90.47,16.03]
[1646048327866,407.46889058,90.5,90.46,16.03]
[1646048328066,406.96889058,90.5,90.461,2.69475386]
[1646048329369,406.96889058,90.5,90.462,6.0]
[1646048329967,406.96889058,90.5,90.461,2.69475386]
[1646048330167,401.96889058,90.5,90.461,2.69475386]
[1646048331772,401.96889058,90.5,90.46,16.03]
[1646048331973,401.96889058,90.5,90.432,2.81158048]
[1646048332671,401.96889058,90.5,90.433,6.0]
[1646048333173,401.96889058,90.5,90.432,2.81158048]
[1646048334777,110.7,90.499,90.43,16.03]
[1646048335175,401.96889058,90.5,90.43,16.03]
[1646048335376,401.96889058,90.5,90.431,2.95227416]
[1646048335776,401.96889058,90.5,90.432,6.0]
[1646048336176,401.96889058,90.5,90.432,8.74678921]
[1646048336779,401.96889058,90.5,90.433,66.45]
[1646048336978,401.96889058,90.5,90.436,2.32879191]
[1646048337182,401.96889058,90.5,90.45,16.03]
[1646048337482,401.96889058,90.5,90.451,2.47100165]
[1646048337678,401.96889058,90.5,90.45,16.03]
[1646048338879,401.96889058,90.5,90.451,2.54836715]
[1646048339282,401.96889058,90.5,90.45,16.03]
[1646048339883,401.96889058,90.5,90.451,11.69974271]
[1646048340383,401.96889058,90.5,90.451,3.09151082]
[1646048340583,401.96889058,90.5,90.45,16.03]
[1646048342588,110.7,90.499,90.434,4.421]
[1646048342786,110.7,90.499,90.435,6.0]
[1646048343488,110.7,90.499,90.423,6.0]
[1646048343688,110.7,90.499,90.422,10.421]
[1646048343889,110.7,90.499,90.423,2.74678921]
[1646048344089,110.7,90.499,90.424,10.421]
[1646048344889,110.7,90.499,90.425,2.74678921]
[1646048345188,110.7,90.499,90.426,10.421]
[1646048345410,401.96889058,90.5,90.426,6.0]
[1646048345609,401.96889058,90.5,90.427,2.74678921]
[1646048345812,401.96889058,90.5,90.428,6.0]
[1646048346311,401.96889058,90.5,90.429,7.16778921]
[1646048346512,401.96889058,90.5,90.43,6.0]
[1646048346713,401.96889058,90.5,90.431,4.421]
[1646048347112,401.96889058,90.5,90.429,2.74678921]
[1646048348812,401.96889058,90.5,90.429,7.16778921]
[1646048349212,401.96889058,90.5,90.43,2.74678921]
[1646048352420,401.96889058,90.5,90.431,4.421]
[1646048352819,401.96889058,90.5,90.432,2.74678921]
[1646048353019,401.96889058,90.5,90.433,4.421]
[1646048353423,401.96889058,90.5,90.434,2.74678921]
[1646048353821,110.7,90.499,90.434,2.74678921]
[1646048354020,110.7,90.499,90.428,6.0]
[1646048354222,110.7,90.499,90.422,4.421]
[1646048354421,110.7,90.499,90.421,2.42900384]
[1646048354822,1.74004167,90.498,90.42,6.0]
[1646048355221,1.74004167,90.498,90.417,16.5902]
[1646048355724,1.74004167,90.498,90.418,2.74678921]
[1646048355922,401.96889058,90.5,90.418,5.09275942]
[1646048356123,401.96889058,90.5,90.42,16.03]
[1646048356323,401.96889058,90.5,90.421,2.4206827]
[1646048356524,401.96889058,90.5,90.422,4.421]
[1646048356730,401.96889058,90.5,90.422,6.68397701]
[1646048356923,401.96889058,90.5,90.422,9.43076622]
[1646048357124,396.2132702,90.5,90.424,177.15]
[1646048357423,383.2714702,90.5,90.461,177.15]
[1646048357626,23.8075,90.589,90.481,177.15]
[1646048357828,23.8075,90.589,90.502,2.59802712]
[1646048358125,47.62434594,90.588,90.51,16.03]
[1646048358325,47.62434594,90.588,90.511,2.77309972]
[1646048358727,47.62434594,90.588,90.511,5.51988893]
[1646048358925,47.62434594,90.588,90.512,2.74678921]
[1646048359325,47.62434594,90.588,90.514,66.45]
[1646048359525,112.6,90.609,90.53,66.45]
[1646048359726,261.2583,90.652,90.547,110.7]
[1646048359926,261.2583,90.652,90.548,4.57254129]
[1646048360129,261.2583,90.652,90.548,184.49489313]
[1646048360328,24.1383,90.689,90.571,0.1]
[1646048360529,49.93521684,90.662,90.572,181.563]
[1646048360731,112.6,90.711,90.572,181.563]
[1646048360732,144.3564,90.745,90.591,177.15]
[1646048360928,144.3564,90.745,90.62,200.43]
[1646048361132,96.7557,90.745,90.635,66.45]
[1646048361328,24.2253,90.745,90.65,16.03]
[1646048361527,24.2253,90.745,90.66,16.03]
[1646048361728,54.83014767,90.699,90.661,7.04109028]
[1646048362130,54.33014767,90.699,90.662,2.74678921]
[1646048362528,24.2253,90.745,90.663,4.41]
[1646048362732,38.67297029,90.7,90.69,200.43]
[1646048363029,9.07e-05,90.774,90.72,2.5474057]
[1646048363230,4.41,90.843,90.74,200.43]
[1646048363430,47.4308477,90.842,90.75,16.03]
[1646048363630,47.4308477,90.842,90.751,2.36514522]
[1646048363829,4.405,90.858,90.752,4.405]
[1646048364030,16.8872,90.942,90.8,200.43]
[1646048364240,16.8872,90.942,90.872,23.0]
[1646048364433,102.4033,90.968,90.88,16.03]
[1646048364631,102.4033,90.968,90.881,2.36491769]
[1646048364830,55.15252934,90.967,90.89,200.43]
[1646048365032,55.15252934,90.967,90.9,16.03]
[1646048365233,5.91013754,90.966,90.9,16.03]
[1646048365430,4.398,90.966,90.9,16.03]
[1646048365630,54.65252934,90.967,90.901,3.09985528]
[1646048365830,54.65252934,90.967,90.901,2.3220021]
[1646048366031,111.87356094,90.966,90.872,5.85]
[1646048366230,112.4161838,90.965,90.8,6.0]
[1646048366431,1.7161838,90.965,90.82,200.43]
[1646048366730,4.4,90.964,90.84,200.43]
[1646048366933,4.4,90.964,90.85,16.03]
[1646048367131,4.4,90.964,90.851,4.4]
[1646048367331,4.4,90.965,90.85,16.03]
[1646048367531,4.4,90.965,90.85,216.46]
[1646048368136,4.4,90.965,90.85,16.03]
[1646048368336,4.4,90.965,90.787,2.38921173]
[1646048368337,4.4,90.965,90.84,16.03]
[1646048368535,110.7,90.959,90.79,16.03]
[1646048368733,16.03,90.96,90.76,200.43]
[1646048368734,110.7,90.913,90.76,16.03]
[1646048368935,16.03,90.9,90.76,16.03]
[1646048369135,52.62779001,90.899,90.76,16.03]
[1646048369335,110.7,90.897,90.76,16.03]
[1646048369535,5.94012568,90.896,90.76,16.03]
[1646048370340,110.7,90.895,90.76,16.03]
[1646048370538,16.03,90.88,90.74,16.03]
[1646048370736,53.31124663,90.861,90.74,16.03]
[1646048370937,22.35673348,90.86,90.74,16.03]
[1646048371137,13.24,90.85,90.71,13.24]
[1646048371338,6.24707323,90.849,90.71,15.98678921]
[1646048371537,6.24707323,90.849,90.71,13.24]
[1646048372344,110.7,90.848,90.71,13.24]
[1646048372645,110.7,90.845,90.71,13.24]
[1646048372847,110.7,90.839,90.71,13.24]
[1646048373043,110.7,90.837,90.71,13.24]
[1646048373245,110.7,90.835,90.679,29.2936102]
[1646048373444,110.7,90.835,90.643,5.0]
[1646048373445,54.67968966,90.799,90.67,13.24]
[1646048373644,110.7,90.789,90.66,13.24]
[1646048373845,110.7,90.787,90.64,13.24]
[1646048374043,110.7,90.787,90.624,2.74678921]
[1646048374044,46.97457001,90.785,90.624,2.74678921]
[1646048374245,170.84442185,90.769,90.624,2.74678921]
[1646048374443,4.41,90.768,90.624,31.40064333]
[1646048374645,5.97937608,90.768,90.63,13.24]
[1646048374943,5.97937608,90.768,90.63,19.24]
[1646048375143,5.97937608,90.768,90.631,29.2928302]
[1646048375546,110.7,90.767,90.631,29.2928302]
[1646048375744,4.41,90.766,90.631,29.2928302]
[1646048375946,4.41,90.767,90.63,19.24]
[1646048376347,4.41,90.767,90.631,2.74678921]
[1646048376547,4.41,90.767,90.61,13.24]
[1646048376844,110.7,90.766,90.61,13.24]
[1646048377045,6.03017837,90.765,90.611,177.15]
[1646048377247,6.03017837,90.765,90.612,2.52500378]
[1646048377447,6.03017837,90.765,90.612,31.1788579]
[1646048377646,1.62017837,90.765,90.613,177.61]
[1646048377846,1.62017837,90.765,90.614,2.79779668]
[1646048378047,1.62017837,90.765,90.615,66.45]
[1646048378246,1.62017837,90.765,90.62,110.7]
[1646048378545,1.62017837,90.765,90.635,66.45]
[1646048378746,1.62017837,90.765,90.65,13.24]
[1646048379364,1.62017837,90.765,90.651,2.74678921]
[1646048379767,1.62017837,90.765,90.652,29.2928302]
[1646048380167,1.62017837,90.765,90.653,2.74678921]
[1646048380570,1.62017837,90.765,90.654,139.9928302]
[1646048380765,1.62017837,90.765,90.664,110.7]
[1646048380966,47.147,90.785,90.655,2.30336324]
[1646048380967,47.147,90.785,90.769,26.94329916]
[1646048381167,4.406,90.832,90.769,34.55329916]
[1646048381368,13.24,90.86,90.769,34.55329916]
[1646048381566,1.77693222,90.832,90.769,34.55329916]
[1646048381766,60.63380479,90.831,90.769,34.55329916]
[1646048382166,1.52379493,90.83,90.769,26.94329916]
[1646048382367,1.52379493,90.83,90.769,0.00329916]
[1646048382570,4.405,90.829,90.769,0.00329916]
[1646048382970,1.85290173,90.846,90.769,0.00329916]
[1646048383171,4.404,90.845,90.769,0.00329916]
[1646048383768,112.3256237,90.839,90.769,0.00329916]
[1646048383969,1.77548864,90.838,90.769,0.00329916]
[1646048384169,1.40477904,90.836,90.769,0.00329916]
[1646048384371,4.405,90.835,90.769,0.00329916]
[1646048384771,110.7,90.829,90.769,0.00329916]
[1646048384973,1.49104248,90.826,90.769,0.00329916]
[1646048385174,4.405,90.825,90.769,0.00329916]
[1646048386574,1.49104248,90.826,90.769,0.00329916]
[1646048386973,4.405,90.825,90.769,0.00329916]
[1646048387174,69.91897662,90.829,90.769,0.00329916]
[1646048387375,66.45,90.824,90.656,4.405]
[1646048387573,69.91897662,90.809,90.66,13.24]
[1646048387776,13.24,90.8,90.661,5.44751861]
[1646048388075,2.73995156,90.799,90.662,2.74678921]
[1646048388375,2.73995156,90.799,90.665,66.45]
[1646048388376,1.014,90.799,90.665,66.45]
[1646048388574,1.014,90.799,90.681,66.45]
[1646048388774,55.03944973,90.808,90.692,2.85068189]
[1646048389175,55.03944973,90.808,90.694,66.45]
[1646048389375,55.03944973,90.808,90.711,66.45]
[1646048389574,55.03944973,90.808,90.721,66.45]
[1646048389775,55.03944973,90.808,90.722,3.10402638]
[1646048389975,55.03944973,90.808,90.723,66.45]
[1646048390174,55.03944973,90.808,90.724,2.29485351]
[1646048390576,55.03944973,90.808,90.724,5.04164272]
[1646048390776,55.03944973,90.808,90.725,2.74678921]
[1646048391577,55.03944973,90.808,90.72,13.24]
[1646048391776,55.03944973,90.808,90.722,2.74678921]
[1646048392177,55.03944973,90.808,90.72,13.24]
[1646048392577,110.7,90.966,90.721,172.63870937]
[1646048392782,78.1606,90.95,90.863,5.75331347]
[1646048392978,78.1606,90.95,90.863,12.97331347]
[1646048393479,59.63473852,90.949,90.865,2.28390678]
[1646048394276,59.63473852,90.949,90.866,2.74678921]
[1646048394477,59.63473852,90.949,90.88,13.24]
[1646048395679,59.63473852,90.949,90.881,30.50093665]
[1646048395880,24.5203,90.974,90.887,66.45]
[1646048396082,24.5203,90.974,90.9,123.94]
[1646048396281,24.5203,90.974,90.901,2.47657061]
[1646048396680,24.5203,90.974,90.901,5.22335982]
[1646048396881,45.616846,90.973,90.901,5.22335982]
[1646048397080,45.616846,90.973,90.902,2.74678921]
[1646048397481,72.7732,90.999,90.902,2.74678921]
[1646048397681,184.025,91.076,90.902,2.74678921]
[1646048397682,1.70981926,91.074,90.911,66.45]
[1646048397882,268.2137,91.075,90.93,110.7]
[1646048398082,268.2137,91.075,90.941,110.7]
[1646048398283,4.397,91.074,90.943,177.15]
[1646048398489,54.89632231,91.014,90.944,2.35675748]
[1646048398686,54.89632231,91.014,90.945,4.397]
[1646048398885,4.397,91.074,90.946,177.15]
[1646048399084,73.7684,91.075,90.961,177.15]
[1646048399284,387.66900413,91.0,90.971,177.15]
[1646048399485,112.6,91.136,91.029,22.94970669]
[1646048399685,112.6,91.136,91.04,13.24]
[1646048399884,46.7772255,91.135,91.04,13.24]
[1646048400287,4.391,91.134,91.03,2.93458381]
[1646048400489,4.391,91.134,91.03,2.43458381]
[1646048400690,5.80175233,91.134,91.03,15.67458381]
[1646048400986,5.80175233,91.134,91.032,2.51083295]
[1646048400987,6.23832955,91.134,91.032,2.51083295]
[1646048401191,6.19430862,91.134,91.032,2.51083295]
[1646048401586,110.7,91.133,91.029,22.94970669]
[1646048401790,1.39699009,91.132,91.029,0.00970669]
[1646048401986,110.7,91.133,91.029,0.00970669]
[1646048402189,110.7,91.129,91.029,0.00970669]
[1646048402386,110.7,91.127,91.029,0.00970669]
[1646048402588,110.7,91.109,91.029,0.00970669]
[1646048402786,177.15,91.103,91.029,0.00970669]
[1646048402987,52.0691391,91.102,91.029,0.00970669]
[1646048403588,82.23900498,91.102,91.029,0.00970669]
[1646048403989,110.7,91.088,91.029,0.00970669]
[1646048404187,110.7,91.072,91.029,0.00970669]
[1646048404387,110.7,91.07,91.029,0.00970669]
[1646048404587,110.7,91.068,91.029,0.00970669]
[1646048404788,110.7,91.062,90.94,13.24]
[1646048404987,110.7,91.06,90.94,13.24]
[1646048405188,67.97688068,91.059,90.94,13.24]
[1646048405388,110.7,91.042,90.94,13.24]
[1646048405590,110.7,91.032,90.91,13.24]
[1646048405789,4.397,91.031,90.91,19.24]
[1646048405990,6.06529942,91.031,90.911,2.41012495]
[1646048406192,177.15,91.012,90.864,4.397]
[1646048406391,6.06529942,91.031,90.828,4.398]
[1646048406392,112.6,90.98,90.828,4.398]
[1646048406591,51.41354752,90.979,90.842,2.74678921]
[1646048406791,1.48277965,90.978,90.843,4.399]
[1646048407191,1.48277965,90.978,90.844,2.74678921]
[1646048407390,1.48277965,90.978,90.845,4.399]
[1646048407590,4.399,90.977,90.84,13.24]
[1646048407791,1.48277965,90.978,90.841,4.4]
[1646048407991,6.29091003,90.977,90.841,7.14678921]
[1646048408193,1.89191003,90.977,90.841,9.73699772]
[1646048408392,1.89191003,90.977,90.842,2.74678921]
[1646048408791,112.59191003,90.977,90.842,2.74678921]
[1646048408994,110.7,90.975,90.841,4.4]
[1646048409191,110.7,90.973,90.841,4.4]
[1646048409391,110.7,90.971,90.841,4.4]
[1646048409591,1.5509068,90.968,90.841,4.4]
[1646048409794,1.58046169,90.966,90.841,4.4]
[1646048409992,53.12546421,90.964,90.841,4.4]
[1646048410193,1.91440964,90.963,90.841,4.4]
[1646048410592,4.4,90.962,90.841,4.4]
[1646048410792,6.31440964,90.963,90.841,4.4]
[1646048411395,1.91440964,90.963,90.841,4.4]
[1646048411595,1.91440964,90.963,90.843,110.7]
[1646048411795,1.91440964,90.963,90.844,8.7903752]
[1646048411993,1.91440964,90.963,90.844,11.53716441]
[1646048412193,1.91440964,90.963,90.845,2.74678921]
[1646048412394,53.12546421,90.964,90.846,6.0]
[1646048412594,53.12546421,90.964,90.86,13.24]
[1646048412794,53.12546421,90.964,90.861,6.0]
[1646048412994,53.12546421,90.964,90.861,11.19141101]
[1646048413195,77.8634,90.978,90.862,110.7]
[1646048413496,77.8634,90.978,90.865,2.69805112]
[1646048413694,77.8634,90.978,90.866,6.0]
[1646048413895,77.8634,90.978,90.88,13.24]
[1646048414097,46.14925266,90.976,90.88,13.24]
[1646048414296,1.46010197,90.975,90.867,2.74678921]
[1646048414496,1.46010197,90.975,90.828,2.58244248]
[1646048414697,4.4,90.974,90.832,2.74678921]
[1646048414896,4.4,90.974,90.84,13.24]
[1646048417299,4.4,90.974,90.82,13.24]
[1646048417300,1.83226181,90.968,90.82,13.24]
[1646048417500,4.4,90.967,90.821,6.0]
[1646048417901,4.4,90.967,90.82,13.24]
[1646048418101,4.4,90.967,90.821,6.0]
[1646048419402,4.4,90.967,90.821,5.5]
[1646048419603,1.83226181,90.968,90.822,2.74678921]
[1646048419803,1.85341178,90.974,90.822,2.74678921]
[1646048420421,4.4,90.973,90.822,2.74678921]
[1646048421021,72.38641058,90.973,90.822,2.74678921]
[1646048421222,1.66094702,90.972,90.823,6.0]
[1646048421421,1.66094702,90.972,90.823,15.1]
[1646048421422,4.4,90.971,90.823,15.1]
[1646048421623,110.7,90.97,90.824,2.74678921]
[1646048421825,5.89488629,90.969,90.825,6.0]
[1646048422022,1.51465795,90.967,90.84,13.24]
[1646048422224,4.4,90.966,90.841,6.0]
[1646048422425,6.27717142,90.966,90.84,13.24]
[1646048422624,1.87717142,90.966,90.84,13.24]
[1646048422824,110.7,90.965,90.841,6.0]
[1646048423026,110.7,90.961,90.84,13.24]
[1646048423225,4.4,90.96,90.84,13.24]
[1646048423426,110.7,90.959,90.84,13.24]
[1646048423625,1.56353138,90.958,90.84,13.24]
[1646048424026,177.15,90.953,90.84,13.24]
[1646048424430,1.49370895,90.952,90.84,13.24]
[1646048425127,4.4,90.951,90.84,13.24]
[1646048425327,4.4,90.951,90.83,13.24]
[1646048425528,4.4,90.951,90.831,6.0]
[1646048425728,4.4,90.951,90.831,13.23]
[1646048426928,1.49370895,90.952,90.831,13.23]
[1646048427131,1.49370895,90.952,90.831,6.0]
[1646048427330,1.49370895,90.952,90.83,13.24]
[1646048427530,4.4,90.951,90.83,13.24]
[1646048427730,177.15,90.949,90.78,13.24]
[1646048427929,177.15,90.949,90.723,9.78317]
[1646048427930,177.15,90.946,90.76,13.24]
[1646048428129,177.15,90.944,90.78,13.24]
[1646048428329,177.15,90.929,90.78,13.24]
[1646048428529,177.15,90.919,90.78,13.24]
[1646048428730,48.52923794,90.908,90.78,13.24]
[1646048428930,177.15,90.899,90.76,13.24]
[1646048429130,177.15,90.897,90.774,11.50476655]
[1646048429330,110.7,90.893,90.754,16.3423]
[1646048429530,110.7,90.873,90.755,6.0]
[1646048429733,110.7,90.865,90.776,11.50488504]
[1646048429933,1.6391325,90.864,90.776,11.50488504]
[1646048430832,1.79558085,90.873,90.776,11.50488504]
[1646048431034,1.79558085,90.873,90.777,6.0]
[1646048431234,1.79558085,90.873,90.78,13.24]
[1646048432736,1.79558085,90.873,90.781,6.0]
[1646048432933,1.44234285,90.874,90.781,6.0]
[1646048433735,112.14234285,90.874,90.78,13.24]
[1646048434034,1.9208388,90.865,90.776,11.50488504]
[1646048434436,1.85250287,90.874,90.776,11.50488504]
[1646048434838,112.55250287,90.874,90.776,11.50488504]
[1646048435230,1.7250808,90.873,90.76,13.24]
[1646048435256,177.15,90.856,90.764,11.50516563]
[1646048435439,61.50655457,90.856,90.764,11.50516563]
[1646048435637,1.69912323,90.855,90.765,110.7]
[1646048435839,59.95904176,90.856,90.77,13.24]
[1646048436037,59.95904176,90.856,90.771,6.0]
[1646048436740,1.85509061,90.892,90.772,110.7]
[1646048436940,1.85509061,90.892,90.774,110.7]
[1646048437137,112.55509061,90.892,90.776,110.7]
[1646048437340,1.75582674,90.891,90.78,13.24]
[1646048437637,48.41969453,90.89,90.78,13.24]
[1646048437837,112.63051723,90.889,90.78,13.24]
[1646048438038,1.68706659,90.888,90.78,13.24]
[1646048438440,110.7,90.885,90.78,13.24]
[1646048438639,1.41404591,90.884,90.78,13.24]
[1646048439539,1.41404591,90.884,90.781,6.0]
[1646048439740,1.53906952,90.889,90.782,110.7]
[1646048439942,48.41969453,90.89,90.781,6.0]
[1646048439943,48.41969453,90.89,90.785,2.83355272]
[1646048440140,48.41969453,90.89,90.787,110.7]
[1646048440341,48.41969453,90.89,90.8,13.24]
[1646048440540,48.41969453,90.89,90.81,13.24]
[1646048440740,1.46677902,90.889,90.8,13.24]
[1646048440939,1.51438387,90.888,90.783,6.0]